Cogmind - Beta 15 @@@ ROGUE MODE // 2025.09.14 @ 10:21:08 Player: Seven ate you Result: Self-destructed Performance ------------- Evolutions (1) 500 Regions Visited (2) 400 Robots Destroyed (29) 145 Value Destroyed (637) 637 Prototype IDs (0) 0 Alien Tech Used (0) 0 Bonus (0) 0 TOTAL SCORE: 1682 Bonus ------- None Cogmind --------- Core Integrity 338/400 Matter 238/300 Energy 250/250 System Corruption 0% Temperature Warm (122) Movement Walking (190) Ox1 Location -9/Materials Parts ------- > --- POWER (1) -------- Ion Engine > --- PROPULSION (2) --- Aluminum Leg Aluminum Leg > --- UTILITY (3) ------ Large Storage Unit Visual Processing Unit Weapon Shielding > --- WEAPON (3) ------- Small Laser Small Laser Particle Cannon > --- INVENTORY (15) --- Light Treads Compact Wheel Sensor Array Signal Interpreter Improved Terrain Scanner Seismic Detector Assault Rifle Light Assault Rifle Peak State ------------ > --- POWER ------------ Ion Engine > --- PROPULSION ------- Aluminum Leg Aluminum Leg > --- UTILITY ---------- Large Storage Unit Visual Processing Unit Weapon Shielding > --- WEAPON ----------- Particle Cannon Assault Rifle Light Assault Rifle > --- INVENTORY -------- Light Treads Compact Wheel Sensor Array Signal Interpreter Improved Terrain Scanner Seismic Detector Small Laser Small Laser [Rating: 12] Favorites ----------- Power Ion Engine Engine Ion Engine Propulsion Light Treads Treads Light Treads Leg Aluminum Leg Utility Visual Processing Unit Storage Small Storage Unit Processor Visual Processing Unit Protection Weapon Shielding Weapon EM Pulse Gun Energy Gun EM Pulse Gun Energy Cannon Particle Cannon Ballistic Gun Assault Rifle Build | -11 -10 -9 ------- Run | Yrd Mat Mat Slots Evolved 2 | . . 2 Power . | . . . Propulsion . | . . . Utility 1 | . . 1 Weapon 1 | . . 1 Parts Attached 20 | 6 7 7 Power 4 | 1 2 1 Engine 4 | 1 2 1 Core . | . . . Reactor . | . . . Propulsion 4 | 2 . 2 Treads 2 | 2 . . Leg 2 | . . 2 Wheel . | . . . Hover . | . . . Flight . | . . . Utility 4 | 1 2 1 Device . | . . . Storage 2 | 1 1 . Processor 1 | . 1 . Hackware . | . . . Protection 1 | . . 1 Artifact . | . . . Weapon 8 | 2 3 3 Energy Gun 5 | 2 1 2 Energy Cannon 1 | . . 1 Ballistic Gun 2 | . 2 . Ballistic Cannon . | . . . Launcher . | . . . Special Weapon . | . . . Impact Weapon . | . . . Slashing Weapon . | . . . Piercing Weapon . | . . . Special Melee Weapon . | . . . Unidentified Prototypes . | . . . Parts Lost 3 | . 2 1 Power 1 | . 1 . Propulsion 1 | . . 1 Utility . | . . . Weapon 1 | . 1 . Highest Loss Streak 2 | . 2 1 To Critical Strikes . | . . . Average Backups 5 | 2 5 7 Power . | . 1 . Propulsion 1 | . 1 1 Utility 2 | . 2 4 Weapon . | 1 . 1 Tool/Special . | . . . Unused Backups 7 | . 1 6 Power 1 | . 1 . Propulsion 1 | . . 1 Utility 5 | . . 5 Weapon . | . . . Tool/Special . | . . . Average Slot Usage (%) 95 | . 97 87 Engine 12 | . 12 11 Treads 24 | . 28 13 Leg 1 | . . 5 Storage 13 | . 14 11 Processor 12 | . 12 11 Protection 2 | . . 11 Energy Gun 12 | . 14 4 Ballistic Gun 14 | . 13 17 Peak Build Rating 12 | 6 8 12 Average Rating 7 | 4 7 10 On Entrance 4 | . 6 8 Naked Turns . | . . . Heaviest Build 33 | 11 28 33 Greatest Support 40 | 40 40 40 Greatest Overweight (x) 1 | . . 1 Average Overweight (x) . | . . . Largest Inventory Capacity 15 | 8 15 15 Average Capacity 11 | 7 10 15 Most Carried 11 | 5 7 11 Average Carried 5 | 3 5 7 Final Capacity 15 | 8 15 15 Final Carried 8 | 5 7 8 Class Distribution -------------------- 93% | Mutant 4% | Scavenger-Tank Dominant Class ---------------- Mutant | -10/Materials Mutant | -9/Materials Resources | -11 -10 -9 ----------- Run | Yrd Mat Mat Matter Collected 556 | 260 176 120 Remotely . | . . . Salvage Created 946 | 124 462 360 Parts 62 | 8 34 20 Haulers Intercepted . | . . . Recyclers Shooed 2 | . 2 . Parts Field Recycled . | . . . Retrieved Matter . | . . . Parts Self-Destructed . | . . . Prevented . | . . . Kills | -11 -10 -9 ------- Run | Yrd Mat Mat Combat Hostiles Destroyed 21 | . 15 6 Guns 17 | . 13 4 Cannons 2 | . . 2 AOE 2 | . 2 . Classes Destroyed 7 | 2 5 . Worker 2 | . 1 1 Tunneler 1 | 1 . . Recycler 2 | 1 . 1 Operator 1 | . 1 . Watcher 2 | . 1 1 Swarmer 8 | . 8 . Grunt 13 | . 7 6 Best Kill Streak 5 | 1 5 4 Combat Bots Only 5 | . 5 3 Max Kills in Single Turn 2 | 1 2 1 Gunslinging 1 | . 1 . Exploded 1 | . 1 . Melee . | . . . Uniques/NPCs Destroyed . | . . . Combat | -11 -10 -9 -------- Run | Yrd Mat Mat Hostile Shots Fired 158 | . 104 54 Missed 51 | . 36 15 Hits 107 | . 68 39 Projectile 107 | . 68 39 Damage Taken 1132 | . 678 454 Core 207 | . 145 62 Absorbed by Shields . | . . . Redirected to Shielding 30 | . . 30 Core Remaining (%) 71 | 100 42 . Volleys Fired 92 | 6 64 22 Largest 3 | 2 2 3 Hottest 148 | 80 80 148 Shots Fired 189 | 12 127 50 Gun 183 | 12 127 44 Cannon 6 | . . 6 Launcher . | . . . Special . | . . . Kinetic 98 | . 66 32 Thermal 47 | 6 23 18 Explosive . | . . . Electromagnetic 44 | 6 38 . Robot Hit Streak 11 | 10 11 9 Robot Miss Streak 4 | . 4 4 Penetration Max . | . . . Secondary Targets 6 | . 5 1 Max Gunslinging Chain 1 | . 1 1 Shots Hit Robots 113 | 10 71 32 Core Hits 46 | 3 26 17 Critical Kills . | . . . Critical Parts Destroyed . | . . . Critical Strikes 1 | . 1 . Corrupt 1 | . 1 . Melee Attacks . | . . . Impact . | . . . Slashing . | . . . Piercing . | . . . Sneak Attacks . | . . . Combat Hostiles . | . . . Follow-up Attacks . | . . . Damage Inflicted 1554 | 120 998 436 Guns 1295 | 120 840 335 Cannons 101 | . . 101 Explosions 158 | . 158 . Melee . | . . . Ramming . | . . . Kinetic 647 | . 410 237 Thermal 555 | 42 314 199 Explosive . | . . . Electromagnetic 352 | 78 274 . Impact . | . . . Slashing . | . . . Piercing . | . . . Highest Corruption . | . . . Average Corruption . | . . . Corruption Purged . | . . . Corruption Blocked . | . . . Overload Shots . | . . . Overflow Damage . | . . . Projectiles . | . . . Explosions . | . . . Melee . | . . . Knockbacks . | . . . Impact . | . . . Kinetic . | . . . Secondary . | . . . Self-Inflicted Damage 33 | . 33 . Shots 1 | . 1 . Rammed . | . . . Targets Rammed . | . . . Kicked . | . . . Crushed . | . . . Highest Temperature 450 | 72 180 450 Average Temperature 84 | 32 46 211 Received Heat Transfer 450 | . 198 252 Effects 2 | . . 2 Matter Decay 1 | . . 1 Short Circuit 1 | . . 1 Siege Activations . | . . . Martial Activations . | . . . Shielding Activations . | . . . Robots Disrupted . | . . . Combat Hostiles . | . . . Robots Corrupted . | . . . Combat Hostiles . | . . . Parts Fried 1 | . 1 . Impact Corruptions . | . . . Robots Melted . | . . . Combat Hostiles . | . . . Parts Melted 3 | . 1 2 Heat Transferred 1110 | 100 600 410 Parts Sabotaged . | . . . Parts Stolen . | . . . Parts Stripped . | . . . Power Chain Reactions 2 | . 2 . Alert | -11 -10 -9 ------- Run | Yrd Mat Mat Maximum Alert Level . | . . . Low Security (%) 100 | 100 100 100 Level 1 . | . . . Level 2 . | . . . Level 3 . | . . . Level 4 . | . . . Level 5 . | . . . High Security . | . . . Max Security . | . . . Peak Influence 180 | 5 180 111 Initial 32 | . . 32 Average 75 | 1 96 38 Influence Increases 599 | 10 401 188 Destroy 0b10 Robot/C 420 | . 300 120 Destroy 0b10 Robot/NC 40 | 10 15 15 Destroy Leader 74 | . 52 22 Disable Machine 30 | . 30 . Destroy Structure 5 | . 4 1 Lose Combat Pursuer 30 | . . 30 Influence Decreases 498 | 10 323 165 Entered New Map 46 | . . 46 Time Decay 423 | 10 303 110 Lost Part 29 | . 20 9 Squads Dispatched 4 | . 3 1 Investigation . | . . . Extermination . | . . . Reinforcement 4 | . 3 1 Assault . | . . . Garrison . | . . . Intercept . | . . . Searches Triggered . | . . . Construction Impeded . | . . . Haulers Reinforced . | . . . Active Scanning Responses . | . . . Cargo Convoy Interrupts . | . . . Stealth | -11 -10 -9 --------- Run | Yrd Mat Mat Distress Signals 2 | . 1 1 Communications Jammed . | . . . Distress Signals . | . . . Times Spotted 40 | . 28 12 Peak Tracking Total 7 | . 7 5 Tactical Retreats 1 | . . 1 Traps | -11 -10 -9 ------- Run | Yrd Mat Mat Traps Triggered . | . . . Indirectly . | . . . Trap Hack Attempts . | . . . Triggered . | . . . Disarmed . | . . . Reprogrammed . | . . . Reused . | . . . Traps Extracted . | . . . Installed . | . . . Triggered . | . . . Machines | -11 -10 -9 ---------- Run | Yrd Mat Mat Machines Disabled 2 | . 2 . Max in Single Turn 1 | . 1 . Machines Repaired . | . . . Machines Dismantled . | . . . Machines Sabotaged . | . . . Overloaded Fab Kills . | . . . Hacking | -11 -10 -9 --------- Run | Yrd Mat Mat Machines Accessed . | . . . Terminals . | . . . Fabricators . | . . . Repair Stations . | . . . Recycling Units . | . . . Scanalyzers . | . . . Garrison Access . | . . . Total Hacks . | . . . Successful . | . . . Failed . | . . . Catastrophic . | . . . Database Lockouts . | . . . Manual . | . . . Terminals . | . . . Fabricators . | . . . Repair Stations . | . . . Recycling Units . | . . . Scanalyzers . | . . . Garrison Access . | . . . Terminal Hacks . | . . . Fabricator Hacks . | . . . Repair Station Hacks . | . . . Recycling Unit Hacks . | . . . Scanalyzer . | . . . Garrison Access Hacks . | . . . Unauthorized Hacks . | . . . Terminals . | . . . Fabricators . | . . . Repair Stations . | . . . Recycling Units . | . . . Scanalyzers . | . . . Garrison Access . | . . . Data Cores Recovered . | . . . Used . | . . . Hacking Detections . | . . . Full Trace Events . | . . . Feedback Events . | . . . Feedback Blocked . | . . . Robot Schematics Acquired . | . . . Robots Built . | . . . Authchips . | . . . Time . | . . . Total Robot Build Rating . | . . . Part Schematics Acquired . | . . . Parts Built . | . . . Authchips . | . . . Time . | . . . Total Part Build Rating . | . . . Parts Repaired . | . . . Time . | . . . Parts Recycled . | . . . Recycled Matter . | . . . Retrieved Matter . | . . . Retrieved Components . | . . . Parts Scanalyzed . | . . . Part Schematics Acquired . | . . . Parts Damaged . | . . . Bothacking | -11 -10 -9 ------------ Run | Yrd Mat Mat Used RIF Installer . | . . . Robots Hacked . | . . . Non-combat . | . . . Combat . | . . . Robot Hacks Applied . | . . . Relay Couplers Released . | . . . Fabnet Peak Effective % . | . . . Robots Rewired . | . . . Allies Hacked . | . . . Hacks Repelled . | . . . Allies | -11 -10 -9 -------- Run | Yrd Mat Mat Total Allies . | . . . Largest Group . | . . . Highest-Rated Group . | . . . Highest-Rated Ally . | . . . Total Orders . | . . . Ally Attacks . | . . . Total Damage . | . . . Kills . | . . . Allies Corrupted . | . . . Allies Melted . | . . . Intel | -11 -10 -9 ------- Run | Yrd Mat Mat Active Infowar (turns) 969 | . 747 222 Optics 969 | . 747 222 Robot Analysis Total . | . . . Derelict Logs Recovered . | . . . Drone Launches . | . . . Drone Recoveries . | . . . Exploration | -11 -10 -9 ------------- Run | Yrd Mat Mat Turns Passed 1161 | 121 818 222 Spaces Moved 519 | 58 380 81 Core 5 | 5 . . Treads 498 | 53 380 65 Legs 16 | . . 16 Wheels . | . . . Hover . | . . . Flight . | . . . Fastest Speed 50 | 50 160 160 Average Speed 161 | 150 160 173 Slowest Speed 240 | 160 160 240 Overloaded Moves . | . . . Propulsion Burnouts . | . . . Robots Hopped . | . . . Potential Cave-ins . | . . . Cave-ins Triggered . | . . . Exploration Rate (%) 29 | 4 74 9 Regions Visited 2 Branch Regions . Pre-discovered Areas . | . . . Known Exits Taken . | . . . Unknown Exits Taken 2 | 1 1 . Scrap Searched . | . . . Spaces Dug . | . . . Terrain Destroyed 3 | . 3 . Melee . | . . . Projectile . | . . . AOE 3 | . 3 . Terrain Rammed . | . . . Walls Destroyed . | . . . Machines Disabled . | . . . Actions | -11 -10 -9 --------- Run | Yrd Mat Mat Total 668 | 80 470 118 Wait 5 | . 5 . Move 517 | 57 379 81 Hop . | . . . Pick Up 27 | 11 10 6 Fast Attach . | . . . Attach 12 | 6 3 3 Detach . | . . . Swap 8 | . 4 4 Drop 7 | . 5 2 Fire 92 | 6 64 22 Melee . | . . . Ram . | . . . Kick . | . . . Crush . | . . . Escape Stasis . | . . . Rewire . | . . . Trap . | . . . Miscellaneous . | . . . Route ------- -11/Scrapyard -10/Materials (discovered 3 exits: [*Mat] / [*Min x2]) -9/Materials History --------- Turn | Location | Event 3 | -11/Scrapyard | Discovered new exit (range 16) 122 | -11/Scrapyard | Entered Materials 310 | -10/Materials | Build established: Mutant 433 | -10/Materials | Discovered new exit (range 8) 655 | -10/Materials | Core integrity fell below 50% 777 | -10/Materials | Discovered new exit (range 12) 932 | -10/Materials | Discovered new exit (range 6) 940 | -10/Materials | Entered another Materials area 940 | -9/Materials | Evolved 2 slots: Utility x1, Weapon x1 1162 | -9/Materials | Self-destructed Last Messages --------------- 01093_ Acquired Sml. Laser. 01094_ K-01 Serf collects debris. 01096_ Acquired Aluminum Leg. 01098_ K-01 Serf collects debris. 01099_ Acquired Aluminum Leg. 01101_ K-01 Serf collects debris. 01104_ R-06 Scavenger collects Ion Engine. 01104_ K-01 Serf collects debris. 01104_ Dropped Ion Engine. 01105_ R-06 Scavenger destroyed. 01108_ Acquired 34 matter. 01108_ K-01 Serf collects debris. 01133_ Aluminum Leg melted. 01133_ G-47 Trooper destroyed. 01140_ Heat Sink melted. 01140_ G-34 Mercenary destroyed. 01141_ U-05 Engineer builds a Door. 01143_ Overheating: Matter decay (-32). 01145_ Particle Cannon broken. 01145_ Overheating: Short circuit. Map ----- +----------------------------------------------------+ | ?????????????????????????????????????????????????? | | ?????????????????????????????????????????????????? | | ?????????????????????????????????????????????????? | | ?????????????????????????????????????????????????? | | ?????????????????????????????????????????????????? | | ?????????????????????????????????????????????????? | | ?????????????????????????????????????????????????? | | ?????????????????????????????????????????????????? | | ?????????????????????????????????????????????????? | | ??????????????????????????????????????#######????? | | ??????????????????????????????????????# #????? | | ??????????????????????????????????????? #????? | | ??????????????????????????????????????? " /????? | | ??????????????????????????????????????? ?????? | | ?????????????????#????????????????????? ?????? | | ?????????????????# ????????????????????# #?????? | | ?????????????????# ???????????????????# #?????? | | ?????????????????? ??????????????????# #?????? | | ???????????????????? ?????????????????# ###???? | | ????????????????????? ????????????????#= ????? | | ????????????????????###+###????????????#*! #?????? | | ????????????????????# ##############%=%####### | | ????????????????????# k =%*!=%# T | | ????????????????????# *%!%[ =# | | ????????????????????# %!=** # """ ! | | ????????????????????# @############## + """ | | ????????????????????###a###??########### # """ | | ??????????????????????#??????# # #?? | | ?????????????????????????????# """ """ # #####+# | | ?????????????????????????????# """ """ # | | ?????????????????????????????# """ """ + | | ?????????????????????????????# # | | ?????????????????????????????# ! = # ####### | | ?????????????????????????????# # #?????? | | ?????????????????????????????# # #?????? | | ?????????????????????????????########### ##????? | | ??????????????????????????????????????# ###### | | ??????????????????????????????????????# | | ??????????????????????????????????????# T | | ??????????????????????????????????????# | | ??????????????????????????????????????# ###+## | | ??????????????????????????????????????####### | | ????????????????????????????????????????????# """ | | ????????????????????????????????????????????# """ | | ????????????????????????????????????????????# """ | | ????????????????????????????????????????????# | | ????????????????????????????????????????????###### | | | | | | | +----------------------------------------------------+ Best States ------------- Heat Dissipation 28 Energy Generation 10 Energy Capacity 250 Matter Stores 300 Matter Capacity 300 Sight Range 18 Terrain Scan Density 10 Weapon Shielding 33 Evasion (%) 40 Recoil Reduction 2 Item Schematics ----------------- None Robot Schematics ------------------ None Fabricated ------------ Nothing Repaired ---------- Nothing Alien Tech Used ----------------- None Achievements -------------- None Challenges ------------ None Game ------ Seed FocalWaveMicrothruster Manual? 0 Play Time 00:14:15 Cumulative 11.8 hours Start 2025.09.14 @ 10:07:15 End 2025.09.14 @ 10:21:08 Sessions 1 Manual Loads 0 Difficulty Rogue Special Mode None Game No. 28 Rogue 28 Adventurer 0 Explorer 0 Win Type - Total 0 Types 0/0/0/0/0/0/0/0/0/0 Lore% 2 Gallery% 13 Achievement% 17 Wizard Run 0 Options --------- Layout 0 ASCII 0 Keyboard 0 Movement Mouse Keybinds 0 Fullscreen 2 Font 24/Smallcaps Map View 76x50 Zoom Use 0% Tactical HUD 1 Map Filters NONE Filters NONE Steam 1 RUN: 17bc4377-0e04-4a2b-8ba0-6c308570291b